bitfinex/quotes_BTCUSD_20220303
["timestamp","ask_amount","ask_price","bid_price","bid_amount"]
[1646266649079,0.28852684,43871.0,43867.0,0.14946638]
[1646266649277,0.28852684,43871.0,43867.0,0.001]
[1646266649477,0.28852684,43871.0,43869.0,0.14946638]
[1646266650221,0.20608577,43870.0,43869.0,0.14946638]
[1646266651422,0.20608577,43870.0,43869.0,0.15046638]
[1646266652125,0.37310199,43870.0,43869.0,0.15046638]
[1646266652325,0.20608577,43870.0,43869.0,0.15046638]
[1646266652523,0.20608577,43870.0,43869.0,0.14946638]
[1646266653223,0.64460677,43870.0,43869.0,0.14946638]
[1646266653977,0.49361343,43870.0,43869.0,0.14946638]
[1646266654575,0.48861343,43870.0,43869.0,0.14946638]
[1646266655178,0.66366327,43870.0,43869.0,0.14946638]
[1646266656381,0.96366327,43870.0,43869.0,0.14946638]
[1646266656580,1.10936327,43870.0,43869.0,0.14946638]
[1646266657379,1.11436327,43870.0,43869.0,0.14946638]
[1646266658627,1.10936327,43870.0,43869.0,0.14946638]
[1646266658832,0.6911,43868.0,43863.0,0.0001718]
[1646266659027,0.55,43869.0,43863.0,0.0001718]
[1646266659028,0.6911,43866.0,43863.0,0.0001718]
[1646266659235,0.0457,43865.0,43850.0,0.10368419]
[1646266659426,0.3,43864.0,43863.0,0.00017179]
[1646266659625,0.19993535,43858.0,43852.0,0.00656179]
[1646266659829,0.23573155,43864.0,43858.0,0.30710488]
[1646266659830,0.19089892,43861.0,43858.0,0.30710488]
[1646266661657,0.23361108,43859.0,43858.0,0.30710488]
[1646266663058,0.27931108,43859.0,43858.0,0.30710488]
[1646266664060,0.0457,43859.0,43858.0,0.30710488]
[1646266665134,0.00391563,43860.0,43858.0,0.30710488]
[1646266665339,0.0487,43859.0,43858.0,0.30710488]
[1646266665539,0.003,43859.0,43858.0,0.60710488]
[1646266666536,0.00391563,43860.0,43858.0,0.60710488]
[1646266667437,0.00391563,43860.0,43858.0,0.30710488]
[1646266668238,0.00391563,43860.0,43859.0,0.3]
[1646266668640,0.1,43871.0,43859.0,0.3]
[1646266668866,0.1,43871.0,43866.0,0.18359116]
[1646266669167,0.25630744,43870.0,43866.0,0.18359116]
[1646266669766,0.1,43871.0,43866.0,0.18359116]
[1646266669968,0.00017124,43874.0,43866.0,0.18359116]
[1646266670170,0.3,43877.0,43866.0,0.18359116]
[1646266670365,0.00017218,43874.0,43866.0,0.18359116]
[1646266671168,0.21069192,43875.0,43866.0,0.18359116]
[1646266671366,0.21069192,43875.0,43866.0,0.18859116]
[1646266671666,0.00017218,43874.0,43866.0,0.18859116]
[1646266672069,0.00017218,43874.0,43866.0,0.42466361]
[1646266672266,0.00017218,43874.0,43866.0,0.18859116]
[1646266672468,0.51069192,43875.0,43866.0,0.005]
[1646266672718,0.51069192,43875.0,43859.0,0.1936]
[1646266672719,0.00017237,43874.0,43861.0,0.00017242]
[1646266673116,0.19023993,43871.0,43861.0,0.00017242]
[1646266673317,0.26026921,43867.0,43862.0,0.20301009]
[1646266673516,0.47140224,43867.0,43861.0,0.00517242]
[1646266673717,0.47140224,43867.0,43861.0,0.005]
[1646266674119,0.47140224,43867.0,43861.0,0.00517245]
[1646266674519,0.47140224,43867.0,43861.0,0.00017245]
[1646266674917,0.26026921,43867.0,43860.0,0.3105695]
[1646266675117,0.26026921,43867.0,43861.0,0.00017245]
[1646266675317,0.0457,43868.0,43861.0,0.00117245]
[1646266676018,0.002,43872.0,43866.0,0.21055321]
[1646266676218,0.15613858,43872.0,43866.0,0.21055321]
[1646266676461,0.20323424,43869.0,43866.0,0.21055321]
[1646266676661,0.002,43872.0,43866.0,0.21055321]
[1646266677464,0.04729424,43873.0,43866.0,0.21055321]
[1646266677862,0.14729424,43873.0,43866.0,0.21055321]
[1646266678462,0.00158521,43867.0,43866.0,0.21055321]
[1646266679265,0.00158521,43867.0,43861.0,0.10385718]
[1646266679664,0.00158521,43867.0,43861.0,0.10368419]
[1646266679870,0.00158521,43867.0,43861.0,0.1038577]
[1646266680313,0.00158521,43867.0,43864.0,0.20493587]
[1646266680915,0.00158521,43867.0,43864.0,0.30862006]
[1646266681514,0.00158521,43867.0,43865.0,0.21025058]
[1646266681914,0.00158521,43867.0,43866.0,0.14]
[1646266683419,0.00157305,43868.0,43867.0,0.55]
[1646266683616,0.00157305,43868.0,43867.0,0.79368419]
[1646266685376,0.00157305,43868.0,43867.0,0.81643419]
[1646266688414,0.00017239,43874.0,43870.0,0.02275]
[1646266688616,0.00017239,43874.0,43872.0,0.20994996]
[1646266688815,0.00017239,43874.0,43873.0,0.02275]
[1646266689513,0.0001724,43876.0,43873.0,0.12643419]
[1646266690514,0.01,43879.0,43873.0,0.12643419]
[1646266690712,0.00017239,43877.0,43873.0,0.12643419]
[1646266690913,0.00017239,43877.0,43873.0,0.10368419]
[1646266691115,0.18584917,43877.0,43873.0,0.10368419]
[1646266691779,0.18567678,43877.0,43873.0,0.10368419]
[1646266691979,0.01,43879.0,43873.0,0.10368419]
[1646266692177,0.00017239,43877.0,43873.0,0.10368419]
[1646266692981,0.01,43879.0,43873.0,0.31614431]
[1646266693180,0.00017239,43877.0,43873.0,0.31614431]
[1646266693978,0.00017239,43877.0,43874.0,0.28755428]
[1646266694180,0.01,43879.0,43874.0,0.28755428]
[1646266694377,0.00017239,43877.0,43874.0,0.28755428]
[1646266694983,0.00017239,43877.0,43873.0,2.40187703]
[1646266695516,0.01,43879.0,43873.0,2.39887703]
[1646266695718,9.156e-05,43877.0,43873.0,2.39887703]
[1646266696215,9.156e-05,43877.0,43873.0,2.40187703]
[1646266696415,9.156e-05,43877.0,43874.0,0.23419658]
[1646266696615,0.01,43879.0,43874.0,0.23419658]
[1646266696816,9.156e-05,43877.0,43874.0,0.23419658]
[1646266697215,9.156e-05,43877.0,43873.0,2.40187703]
[1646266697416,9.156e-05,43877.0,43873.0,0.31614431]
[1646266697817,0.01,43879.0,43873.0,0.31614431]
[1646266698025,0.0001864,43877.0,43873.0,0.31614431]
[1646266698217,0.0001864,43877.0,43874.0,0.27845487]
[1646266698418,0.0001864,43877.0,43873.0,0.10368419]
[1646266698870,0.0001864,43877.0,43868.0,0.02575]
[1646266699171,0.00018911,43877.0,43876.0,0.10368419]
[1646266699567,0.00018911,43877.0,43876.0,0.32693403]
[1646266700171,0.01,43879.0,43876.0,0.32693403]
[1646266700371,0.0101891,43879.0,43876.0,0.32693403]
[1646266701471,0.01,43879.0,43876.0,0.32693403]
[1646266701871,0.01,43879.0,43876.0,0.10368419]
[1646266704114,0.01,43879.0,43865.0,0.28625]
[1646266704115,0.0457,43878.0,43872.0,0.10368419]
[1646266704413,0.0457,43878.0,43876.0,0.003]
[1646266704414,0.3,43877.0,43876.0,0.003]
[1646266704615,0.3457,43877.0,43876.0,0.003]
[1646266704810,0.0457,43877.0,43876.0,0.003]
[1646266705014,0.3457,43877.0,43876.0,0.003]
[1646266705411,0.75165056,43877.0,43876.0,0.003]
[1646266705611,0.75165056,43877.0,43867.0,0.2723849]
[1646266706011,0.18471766,43875.0,43867.0,0.2723849]
[1646266706213,0.18471766,43875.0,43867.0,0.2763849]
[1646266706214,0.0457,43874.0,43867.0,0.2763849]
[1646266706484,0.04587218,43874.0,43867.0,0.2763849]
[1646266707290,0.0457,43874.0,43867.0,0.2763849]
[1646266707485,0.0457,43874.0,43867.0,0.2723849]
[1646266707684,0.04587217,43874.0,43867.0,0.2723849]
[1646266708586,0.0457,43874.0,43867.0,0.2723849]
[1646266708786,0.04587217,43874.0,43867.0,0.2723849]
[1646266709487,0.21932881,43869.0,43867.0,0.2723849]
[1646266709688,0.25275027,43872.0,43870.0,0.28757674]
[1646266712028,0.04587281,43874.0,43870.0,0.28757674]
[1646266712228,0.001,43872.0,43870.0,0.28757674]
[1646266713031,0.0457,43871.0,43870.0,0.28757674]
[1646266713886,0.30460675,43871.0,43870.0,0.28757674]
[1646266714291,0.30860675,43871.0,43870.0,0.28757674]
[1646266714986,0.99970675,43871.0,43870.0,0.28757674]
[1646266715197,0.30860675,43871.0,43870.0,0.28757674]
[1646266715387,0.99970675,43871.0,43870.0,0.28757674]
[1646266715688,0.99570675,43871.0,43870.0,0.28757674]
[1646266716291,1.00070675,43871.0,43870.0,0.28757674]
[1646266716889,1.10070675,43871.0,43870.0,0.28757674]
[1646266717628,1.09570675,43871.0,43870.0,0.28757674]
[1646266718228,1.10070675,43871.0,43870.0,0.28757674]
[1646266719529,1.39570675,43871.0,43870.0,0.28757674]
[1646266722274,1.40070675,43871.0,43870.0,0.28757674]
[1646266722873,1.15774775,43871.0,43870.0,0.28757674]
[1646266723073,1.45774775,43871.0,43870.0,0.28757674]
[1646266723272,1.15774775,43871.0,43870.0,0.28757674]
[1646266723473,1.45774775,43871.0,43870.0,0.28757674]
[1646266723674,1.45274775,43871.0,43870.0,0.28757674]
[1646266724375,1.45774775,43871.0,43870.0,0.28757674]
[1646266725415,1.15774775,43871.0,43870.0,0.28757674]
[1646266725618,1.45274775,43871.0,43870.0,0.28757674]
[1646266725816,1.15274775,43871.0,43870.0,0.28757674]
[1646266726217,1.45674775,43871.0,43870.0,0.28757674]
[1646266727417,1.15674775,43871.0,43870.0,0.28757674]
[1646266727617,1.45274775,43871.0,43870.0,0.28757674]
[1646266728418,1.45774775,43871.0,43870.0,0.28757674]
[1646266729597,1.45274775,43871.0,43870.0,0.28757674]
[1646266729803,0.893841,43871.0,43870.0,0.28757674]
[1646266730500,0.848141,43871.0,43870.0,0.28757674]
[1646266730898,1.08222855,43871.0,43870.0,0.28757674]
[1646266731099,0.39112855,43871.0,43870.0,0.28757674]
[1646266731299,0.29112855,43871.0,43870.0,0.28757674]
[1646266731499,0.39112855,43871.0,43870.0,0.28757674]
[1646266731903,0.157041,43871.0,43870.0,0.28757674]
[1646266732499,0.057041,43871.0,43870.0,0.28757674]
[1646266734635,0.062041,43871.0,43870.0,0.2874681]
[1646266735030,0.34905231,43871.0,43870.0,0.2874681]
[1646266735733,1.39392331,43871.0,43870.0,0.2874681]
[1646266735932,1.04015231,43871.0,43870.0,0.2874681]
[1646266736133,1.34015231,43871.0,43870.0,0.2874681]
[1646266736376,1.38085231,43871.0,43870.0,0.2874681]
[1646266736677,1.48085231,43871.0,43870.0,0.2874681]
[1646266737079,1.18085231,43871.0,43870.0,0.2874681]
[1646266737878,0.48975231,43871.0,43870.0,0.2874681]
[1646266738075,0.202741,43871.0,43870.0,0.2874681]
[1646266738277,0.107741,43871.0,43870.0,0.2874681]
[1646266739477,0.062041,43871.0,43870.0,0.2874681]
[1646266739676,0.057041,43871.0,43870.0,0.2874681]
[1646266740313,0.062041,43871.0,43870.0,0.2874681]
[1646266740516,0.062041,43871.0,43870.0,0.50903152]
[1646266741419,0.062041,43871.0,43870.0,0.61271571]
[1646266741618,0.01,43879.0,43871.0,0.67908199]
[1646266741815,0.00018247,43874.0,43871.0,0.12908199]
[1646266742420,0.21406019,43879.0,43871.0,0.12908199]
[1646266742816,0.00017523,43875.0,43871.0,0.12908199]
[1646266743619,0.21306019,43879.0,43871.0,0.12908199]
[1646266744068,0.00017523,43875.0,43871.0,0.12908199]
[1646266745269,0.00017554,43875.0,43871.0,0.12908199]
[1646266746271,0.00034216,43875.0,43871.0,0.13108199]
[1646266746469,0.00016662,43875.0,43871.0,0.13108199]
[1646266747271,0.21306019,43879.0,43871.0,0.13108199]
[1646266747471,0.00016662,43875.0,43871.0,0.12908199]
[1646266748348,0.6911,43877.0,43871.0,0.12908199]
[1646266748349,0.009126,43876.0,43871.0,0.13108199]
[1646266748549,0.009126,43876.0,43872.0,0.15525589]
[1646266748750,0.00016716,43875.0,43872.0,0.15525589]
[1646266749649,0.01,43879.0,43872.0,0.15525589]
[1646266749850,0.00017473,43876.0,43872.0,0.15525589]
[1646266750551,0.00017473,43876.0,43872.0,0.15625589]
[1646266750750,0.01,43879.0,43872.0,0.15625589]
[1646266751156,0.00017473,43876.0,43874.0,0.21015664]
[1646266751365,0.00017473,43876.0,43872.0,0.15625589]
[1646266752066,0.01,43879.0,43872.0,0.15625589]
[1646266752067,0.18170292,43875.0,43872.0,0.001]
[1646266752269,0.92399056,43875.0,43872.0,0.001]
[1646266752565,0.00017392,43876.0,43872.0,0.001]
[1646266753168,0.0715709,43877.0,43872.0,0.001]
[1646266753569,0.0715709,43877.0,43871.0,0.12908199]
[1646266753570,0.00017392,43876.0,43871.0,0.12908199]
[1646266753768,0.20636759,43875.0,43871.0,0.12908199]
[1646266753967,0.89746759,43875.0,43871.0,0.12908199]
[1646266754168,0.00017392,43876.0,43871.0,0.12908199]
[1646266754370,0.3557,43879.0,43871.0,0.12908199]
[1646266754569,0.00017293,43875.0,43871.0,0.12908199]
[1646266755144,0.00017293,43875.0,43874.0,0.20502925]
[1646266755549,0.01,43879.0,43874.0,0.20502925]
[1646266756046,0.009125,43876.0,43874.0,0.20502925]
[1646266756443,0.00017271,43877.0,43874.0,0.20502925]
[1646266756845,0.014,43879.0,43874.0,0.26861925]
[1646266757044,0.00017271,43878.0,43876.0,0.10368419]
[1646266757644,0.00017271,43878.0,43877.0,0.2067745]
[1646266757846,0.00017271,43878.0,43877.0,0.3467745]
[1646266758049,0.01,43879.0,43877.0,0.2067745]
[1646266758446,0.01,43879.0,43877.0,0.2097745]
[1646266759516,0.00972564,43879.0,43877.0,0.2097745]
[1646266759715,0.00972564,43879.0,43878.0,0.14]
[1646266760317,0.00972564,43879.0,43878.0,0.144]
[1646266760822,0.00972564,43879.0,43878.0,0.004]
[1646266761618,0.00972564,43879.0,43877.0,0.2067745]
[1646266762418,0.00972564,43879.0,43877.0,0.2117745]
[1646266763726,0.00972564,43879.0,43877.0,0.2067745]
[1646266764328,0.00972564,43879.0,43877.0,0.2117745]
[1646266765726,0.00972564,43879.0,43877.0,0.2067745]
[1646266766369,0.00972564,43879.0,43877.0,0.2107745]
[1646266766976,0.19357708,43878.0,43877.0,0.004]
[1646266767178,0.89304808,43878.0,43877.0,0.004]
[1646266767375,1.58414808,43878.0,43877.0,0.004]
[1646266767673,1.58414808,43878.0,43871.0,0.12908199]
[1646266767674,1.68414808,43878.0,43871.0,0.12908199]
[1646266767875,0.28663329,43872.0,43871.0,0.12908199]
[1646266768075,0.33233329,43872.0,43871.0,0.12908199]
[1646266768275,1.02343329,43872.0,43871.0,0.12908199]
[1646266772824,1.02343329,43872.0,43871.0,0.12408199]
[1646266775770,0.8368,43872.0,43871.0,0.12408199]
[1646266775972,0.009126,43873.0,43871.0,0.12408199]
[1646266776174,0.19239349,43877.0,43871.0,0.12408199]
[1646266776370,0.00018743,43874.0,43871.0,0.12408199]
[1646266777172,0.19439349,43877.0,43871.0,0.12408199]
[1646266777646,0.0001877,43875.0,43871.0,0.12408199]
[1646266778044,0.20620245,43873.0,43871.0,0.12408199]
[1646266778748,0.0001877,43874.0,43871.0,0.12408199]
[1646266779544,0.6931,43875.0,43871.0,0.12408199]
[1646266779745,0.26338315,43875.0,43871.0,0.12408199]
[1646266779946,0.0001877,43875.0,43871.0,0.12408199]
[1646266780748,0.18044652,43876.0,43871.0,0.12408199]
[1646266780946,0.6911,43876.0,43871.0,0.12408199]
[1646266781149,0.22551365,43874.0,43871.0,0.12408199]
[1646266781888,0.7368,43873.0,43871.0,0.12408199]
[1646266782090,0.9911,43872.0,43871.0,0.12408199]
[1646266782290,1.0368,43872.0,43871.0,0.12408199]
[1646266782890,1.0368,43872.0,43861.0,0.18118716]
[1646266782891,0.6911,43870.0,43861.0,0.18118716]
[1646266783094,0.55,43871.0,43861.0,0.00018716]
[1646266783095,0.6911,43866.0,43861.0,0.00018716]
[1646266783289,0.65,43871.0,43853.0,0.22228419]
[1646266783290,1.0368,43865.0,43853.0,0.22228419]
[1646266783488,0.0457,43864.0,43853.0,0.10368419]
[1646266783887,0.1993454,43860.0,43853.0,0.10368419]
[1646266784091,0.18735722,43862.0,43861.0,0.05718926]
[1646266785422,0.6911,43863.0,43861.0,0.05718926]
[1646266785618,0.0457,43862.0,43861.0,0.05718926]
[1646266786219,0.7368,43862.0,43861.0,0.05718926]
[1646266786624,0.8368,43862.0,43861.0,0.05718926]
[1646266788978,0.0457,43862.0,43861.0,0.05718926]
[1646266789778,0.0457,43862.0,43861.0,0.31775265]
[1646266789978,0.0457,43862.0,43861.0,0.49049318]
[1646266790179,0.0457,43862.0,43861.0,0.31775265]
[1646266790479,0.0457,43862.0,43861.0,0.31875265]
[1646266790877,0.101,43867.0,43861.0,0.31875265]
[1646266791078,0.009128,43863.0,43861.0,0.31875265]
[1646266791279,0.3,43866.0,43861.0,0.31875265]
[1646266791479,0.401,43867.0,43861.0,0.31875265]
[1646266791680,0.401,43867.0,43861.0,0.31775265]
[1646266791681,0.1,43867.0,43861.0,0.31775265]
[1646266791881,0.4,43867.0,43861.0,0.31793933]
[1646266792479,0.402,43867.0,43861.0,0.31793933]
[1646266792731,1.0931,43867.0,43861.0,0.05737594]
[1646266792934,1.0931,43867.0,43861.0,0.05718926]
[1646266793233,1.0931,43867.0,43861.0,0.05737594]
[1646266793833,1.0911,43867.0,43861.0,0.05737594]
[1646266794132,1.0911,43867.0,43861.0,0.05718926]
[1646266794336,1.0911,43867.0,43861.0,0.05737594]
[1646266794337,0.6911,43865.0,43861.0,0.05737594]
[1646266794533,0.6911,43863.0,43861.0,0.05837594]
[1646266794731,0.7911,43862.0,43861.0,0.05837594]
[1646266794934,0.6911,43862.0,43861.0,0.05837594]
[1646266795138,0.7911,43862.0,43861.0,0.05837594]
[1646266795334,1.02670841,43862.0,43861.0,0.05778229]
[1646266795734,1.02670841,43862.0,43861.0,0.05678229]
[1646266796589,1.32670841,43862.0,43861.0,0.05678229]
[1646266796990,0.55,43861.0,43859.0,0.00018721]
[1646266797188,1.0368,43860.0,43859.0,0.00018721]
[1646266797384,1.482641,43860.0,43859.0,0.00018721]
[1646266797588,1.582641,43860.0,43847.0,0.1837]
[1646266797787,0.76137547,43853.0,43844.0,0.10368419]
[1646266797987,0.6911,43851.0,43846.0,0.20963927]
[1646266798284,0.17038436,43856.0,43846.0,0.20963927]
[1646266798285,0.7368,43850.0,43846.0,0.20963927]
[1646266798484,0.0457,43849.0,43846.0,0.20963927]
[1646266800138,0.0457,43849.0,43848.0,0.10368419]
[1646266800936,0.0457,43849.0,43848.0,0.36638974]
[1646266801538,0.1,43856.0,43848.0,0.36638974]
[1646266801741,0.61123525,43855.0,43848.0,0.36638974]
[1646266802236,0.1,43854.0,43848.0,0.36638974]
[1646266802436,0.00913,43850.0,43848.0,0.36638974]
[1646266802637,0.1,43854.0,43849.0,0.00018702]
[1646266803337,0.353771,43854.0,43849.0,0.00018702]
[1646266803537,0.0457,43855.0,43849.0,0.00018702]
[1646266803736,0.0457,43855.0,43848.0,0.56447168]
[1646266803978,0.0457,43855.0,43849.0,0.00018702]
[1646266804582,0.1,43856.0,43849.0,0.00018702]
[1646266804782,0.4,43857.0,43848.0,0.56447168]
[1646266804982,0.001,43855.0,43848.0,0.46078749]
[1646266805180,0.001,43855.0,43851.0,0.17503828]
[1646266805780,0.353771,43859.0,43851.0,0.17503828]
[1646266805980,0.353771,43857.0,43853.0,0.10368419]
[1646266806180,0.353771,43857.0,43853.0,0.10387151]
[1646266806381,0.0457,43858.0,43853.0,0.10387151]
[1646266806781,0.353771,43857.0,43853.0,0.10387151]
[1646266807634,0.6911,43863.0,43853.0,0.10387151]
[1646266807635,0.353771,43863.0,43853.0,0.10387151]
[1646266807837,0.1,43862.0,43853.0,0.00018732]
[1646266808034,0.1,43862.0,43856.0,0.10368419]
[1646266808236,0.353771,43861.0,43856.0,0.10368419]
[1646266808437,0.353771,43861.0,43858.0,0.20235866]
[1646266808738,0.0457,43864.0,43858.0,0.20235866]
[1646266808938,0.1,43867.0,43860.0,0.10368419]
[1646266809138,0.8044,43870.0,43860.0,0.10368419]
[1646266809840,0.1133,43870.0,43866.0,0.26618585]
[1646266810038,0.009127,43871.0,43866.0,0.26618585]
[1646266811381,0.18010869,43874.0,43866.0,0.26618585]
[1646266811585,0.353771,43873.0,43861.0,0.000187]
[1646266811782,0.28010869,43874.0,43863.0,0.10368419]
[1646266812181,0.27992175,43874.0,43863.0,0.10368419]
[1646266812386,0.28010869,43874.0,43863.0,0.10368419]
[1646266812582,0.28010869,43874.0,43865.0,0.19796851]
[1646266812783,0.353771,43873.0,43869.0,0.20408198]
[1646266813184,0.10018694,43874.0,43870.0,0.3]
[1646266813185,0.00018694,43874.0,43870.0,0.3]
[1646266813384,0.13042564,43879.0,43873.0,0.10368419]
[1646266813583,0.00972564,43879.0,43873.0,0.10368419]
[1646266813784,0.00972564,43879.0,43876.0,0.35653766]
[1646266814787,0.00972564,43879.0,43875.0,0.04881]
[1646266815851,0.00972564,43879.0,43877.0,0.1829935]
[1646266816051,0.00983133,43879.0,43877.0,0.1829935]
[1646266816850,0.00972564,43879.0,43877.0,0.1829935]
[1646266818650,0.00518478,43879.0,43877.0,0.1829935]
[1646266819102,0.00020215,43880.0,43879.0,0.01555433]
[1646266819294,0.0999,43891.0,43879.0,0.28625617]
[1646266819494,0.0999,43891.0,43890.0,0.20943844]
[1646266820301,0.001,43895.0,43890.0,0.20943844]
[1646266820496,0.001,43895.0,43894.0,0.10368419]
[1646266820894,0.001,43895.0,43891.0,0.21865538]
[1646266821097,0.001,43895.0,43885.0,0.10368419]
[1646266821894,0.701221,43895.0,43885.0,0.10368419]
[1646266822097,0.21190182,43891.0,43885.0,0.10368419]
[1646266822295,0.21190182,43891.0,43882.0,0.31582057]
[1646266823135,0.16403886,43889.0,43882.0,0.10368419]
[1646266823339,0.16403886,43889.0,43880.0,0.004]
[1646266823340,0.16424199,43889.0,43880.0,0.004]
[1646266823537,1.044871,43886.0,43879.0,0.01555433]
[1646266823737,0.3,43885.0,43879.0,0.01555433]
[1646266823937,0.3,43888.0,43879.0,0.01555433]
[1646266824136,0.4,43888.0,43881.0,0.10368419]
[1646266824339,0.1,43887.0,43881.0,0.10368419]
[1646266824535,0.00020314,43884.0,43881.0,0.10368419]
[1646266825340,0.1,43887.0,43881.0,2.61003177]
[1646266825543,0.00020299,43885.0,43881.0,2.50634758]
[1646266825739,0.00020299,43885.0,43881.0,2.61003177]
[1646266825938,0.00932599,43885.0,43881.0,0.10368419]
[1646266826377,0.00932599,43885.0,43879.0,0.01555433]
[1646266826577,0.353771,43884.0,43880.0,0.2161246]
[1646266826979,0.00932599,43885.0,43880.0,0.31980879]
[1646266827375,0.00020299,43885.0,43880.0,0.10368419]
[1646266827774,0.353771,43890.0,43880.0,0.10368419]
[1646266827976,0.00020299,43885.0,43882.0,0.16751464]
[1646266828977,0.17127805,43887.0,43882.0,0.16751464]
[1646266829177,0.00020298,43886.0,43882.0,0.16751464]
[1646266829880,0.00020298,43886.0,43885.0,0.10368419]
[1646266830144,0.31875962,43892.0,43885.0,0.10368419]
[1646266830345,0.00020298,43886.0,43885.0,0.10368419]
[1646266831146,0.00020298,43886.0,43883.0,0.10368419]
[1646266831345,0.15872533,43889.0,43883.0,0.10368419]
[1646266831545,0.00020298,43888.0,43883.0,0.10368419]
[1646266832348,0.00020298,43888.0,43883.0,0.10468419]
[1646266832546,0.15872533,43889.0,43883.0,0.10468419]
[1646266832745,0.00020298,43888.0,43883.0,0.10468419]
[1646266833353,0.353771,43887.0,43883.0,0.001]
[1646266833549,0.7368,43886.0,43883.0,0.001]
[1646266833749,0.353771,43885.0,43883.0,0.001]
[1646266833984,0.1457,43884.0,43883.0,0.001]
[1646266834183,0.75022199,43884.0,43879.0,0.01555433]
[1646266834383,0.21264032,43881.0,43879.0,0.01555433]
[1646266834584,0.353771,43880.0,43879.0,0.01555433]
[1646266835988,0.399471,43880.0,43879.0,0.01555433]
[1646266836383,0.39919654,43880.0,43879.0,0.01555433]
[1646266836587,0.0457,43880.0,43879.0,0.01555433]
[1646266836784,0.00018798,43882.0,43879.0,0.01555433]
[1646266837383,0.0457,43886.0,43879.0,0.01555433]
[1646266837639,0.00010592,43883.0,43879.0,0.01555433]
[1646266838643,0.1457,43886.0,43879.0,0.01555433]
[1646266838836,0.00010592,43883.0,43879.0,0.01555433]
[1646266839335,0.399446,43882.0,43879.0,0.01555433]
[1646266840137,0.0457,43882.0,43879.0,0.01555433]
[1646266840837,0.00010592,43883.0,43879.0,0.01555433]
[1646266841039,0.1,43885.0,43879.0,0.01555433]
[1646266841385,0.00020332,43883.0,43879.0,0.01555433]
[1646266842182,0.11139,43888.0,43879.0,0.01555433]
[1646266842379,0.11139,43888.0,43879.0,0.01755433]
[1646266842380,0.00020332,43883.0,43879.0,0.01755433]
[1646266843180,0.19418969,43882.0,43879.0,0.01755433]
[1646266843384,0.353746,43881.0,43879.0,0.01755433]
[1646266843584,0.399446,43880.0,43879.0,0.01555433]
[1646266846644,0.61888999,43880.0,43879.0,0.01555433]
[1646266847043,0.71888999,43880.0,43879.0,0.01555433]
[1646266847843,0.95568184,43880.0,43879.0,0.01555433]
[1646266848042,0.71888999,43880.0,43879.0,0.01555433]
[1646266848902,1.40998999,43880.0,43879.0,0.01555433]
[1646266849310,0.71888999,43880.0,43879.0,0.01555433]
[1646266849701,0.97848653,43880.0,43879.0,0.01555433]
[1646266849900,0.71888999,43880.0,43879.0,0.01555433]
[1646266850904,0.499446,43880.0,43879.0,0.24584231]
[1646266851104,0.00020318,43882.0,43879.0,0.11923852]
[1646266851105,0.353746,43881.0,43879.0,0.11923852]
[1646266851302,0.00020318,43882.0,43879.0,0.11923852]
[1646266851800,0.19633013,43886.0,43879.0,0.01555433]
[1646266852004,0.353746,43882.0,43879.0,0.01555433]
[1646266852201,0.47919369,43886.0,43879.0,0.01555433]
[1646266852398,0.353746,43885.0,43879.0,0.01555433]
[1646266853131,0.18642848,43882.0,43879.0,0.01555433]
[1646266853334,0.353746,43881.0,43879.0,0.01555433]
[1646266854540,0.63660956,43881.0,43879.0,0.01555433]
[1646266854734,0.0457,43880.0,43879.0,0.01555433]
[1646266855036,1.090546,43880.0,43879.0,0.01555433]
[1646266855233,1.190546,43880.0,43879.0,0.01555433]
[1646266855434,1.76158852,43880.0,43879.0,0.01555433]
[1646266855638,2.44423916,43880.0,43879.0,0.01555433]
[1646266855836,2.54460756,43880.0,43879.0,0.01555433]
[1646266857489,2.38201253,43880.0,43879.0,0.01547219]
[1646266857690,2.49607653,43880.0,43879.0,0.01547219]
[1646266858090,2.43971834,43880.0,43879.0,0.01547219]
[1646266858290,2.44371834,43880.0,43879.0,0.01547219]
[1646266859390,2.46636928,43880.0,43879.0,0.01547219]
[1646266859594,2.51940028,43880.0,43879.0,0.01547219]
[1646266860442,2.52240028,43880.0,43879.0,0.01547219]
[1646266861040,0.6911,43876.0,43864.0,0.10368419]
[1646266861243,0.6911,43872.0,43864.0,0.10368419]
[1646266861442,0.399446,43871.0,43864.0,0.10368419]
[1646266861645,0.499446,43871.0,43864.0,0.10368419]
[1646266862245,0.56134612,43867.0,43864.0,0.10368419]
[1646266862442,0.353746,43865.0,43864.0,0.10368419]
[1646266862641,0.0457,43866.0,43864.0,0.10368419]
[1646266862844,0.0457,43865.0,43864.0,0.10368419]
[1646266863242,0.353746,43866.0,43865.0,0.09029576]
[1646266863902,0.0457,43866.0,43865.0,0.09029576]
[1646266864103,0.0457,43866.0,43865.0,0.35922754]
[1646266866504,0.0457,43866.0,43865.0,0.58922754]
[1646266867505,0.0457,43866.0,43865.0,0.32029576]
[1646266868129,0.399446,43866.0,43865.0,0.32029576]
[1646266869029,0.55681696,43866.0,43865.0,0.32029576]
[1646266870233,0.399446,43866.0,43865.0,0.32029576]
[1646266871029,0.0457,43866.0,43865.0,0.76268763]
[1646266871231,0.353746,43870.0,43865.0,0.76268763]
[1646266871888,0.353746,43872.0,43865.0,0.76268763]
[1646266872388,0.1,43871.0,43865.0,0.76368763]
[1646266872687,0.353746,43870.0,43865.0,0.76368763]
[1646266872883,0.1,43871.0,43865.0,0.76368763]
[1646266873086,0.353746,43870.0,43865.0,0.76368763]
[1646266873284,0.1,43871.0,43865.0,0.76368763]
[1646266873484,0.16072038,43873.0,43865.0,0.76368763]
[1646266873692,0.00019697,43874.0,43866.0,0.3]
[1646266873988,0.00019697,43874.0,43872.0,0.10368419]
[1646266874586,0.00019697,43874.0,43866.0,0.003]
[1646266874785,0.19917878,43877.0,43869.0,0.45]
[1646266874989,0.00019698,43875.0,43868.0,0.10368419]
[1646266875960,0.19917878,43877.0,43868.0,0.10368419]
[1646266876361,0.19917878,43877.0,43867.0,0.28813145]
[1646266876959,0.23584779,43878.0,43872.0,0.16848405]
[1646266877162,0.62063769,43887.0,43876.0,0.10368419]
[1646266877163,0.23584779,43881.0,43876.0,0.10368419]
[1646266877360,0.58297707,43886.0,43880.0,0.10368419]
[1646266877562,0.01139,43892.0,43880.0,0.0832997]
[1646266877563,0.353746,43885.0,43880.0,0.0832997]
[1646266877962,0.18495632,43884.0,43880.0,0.0832997]
[1646266878161,0.51133769,43883.0,43873.0,0.21645]
[1646266878359,0.51133769,43883.0,43876.0,0.0832997]
[1646266878360,0.15759169,43883.0,43876.0,0.0832997]
[1646266878659,0.353746,43882.0,43876.0,0.0832997]